[Event "Titled Tuesday Blitz April 19 Early 2022"]
[White "Namitbir Singh Walia"]
[Black "Bilan, Danila"]
[WhiteFideId "35071068"]
[BlackFideId "24161918"]
[WhiteElo "1565"]
[BlackElo "2164"]
[Result "0-1"]
[Round "02"]
[TimeControl "180+1"]
[Date "2022.04.19"]
[WhiteClock "0:00:02"]
[BlackClock "0:00:04"]

1. d4 {[%clk 0:03:00]}  d5 {[%clk 0:02:59]} 2. c4 {[%clk 0:03:00]}  c6 {[%clk 0:02:59]} 3. g3 {[%clk 0:02:58]}  Nf6 {[%clk 0:02:59]} 4. Bg2 {[%clk 0:02:58]}  g6 {[%clk 0:03:00]} 5. Nf3 {[%clk 0:02:55]}  Bg7 {[%clk 0:03:00]} 6. cxd5 {[%clk 0:02:46]}  cxd5 {[%clk 0:02:55]} 7. Qa4+ {[%clk 0:02:40]}  Bd7 {[%clk 0:02:48]} 8. Qb3 {[%clk 0:02:39]}  Bc6 {[%clk 0:02:42]} 9. Ne5 {[%clk 0:02:37]}  O-O {[%clk 0:02:28]} 10. Nc3 {[%clk 0:02:33]}  Nbd7 {[%clk 0:02:23]} 11. Bf4 {[%clk 0:01:57]}  Nh5 {[%clk 0:02:14]} 12. Bxd5 {[%clk 0:01:43]}  Bxd5 {[%clk 0:02:10]} 13. Qxd5 {[%clk 0:01:40]}  Nxf4 {[%clk 0:02:05]} 14. gxf4 {[%clk 0:01:19]}  Nxe5 {[%clk 0:01:57]} 15. dxe5 {[%clk 0:01:12]}  Qb6 {[%clk 0:01:54]} 16. Qb5 {[%clk 0:01:09]}  Qc7 {[%clk 0:01:45]} 17. Nd5 {[%clk 0:01:03]}  Qc2 {[%clk 0:01:24]} 18. Nxe7+ {[%clk 0:01:00]}  Kh8 {[%clk 0:01:23]} 19. O-O {[%clk 0:00:57]}  Rae8 {[%clk 0:01:12]} 20. Nd5 {[%clk 0:00:46]}  a6 {[%clk 0:01:06]} 21. Ne3 {[%clk 0:00:35]}  Qc7 {[%clk 0:00:58]} 22. Qb3 {[%clk 0:00:29]}  b5 {[%clk 0:00:45]} 23. Rfd1 {[%clk 0:00:28]}  Qc8 {[%clk 0:00:41]} 24. Rac1 {[%clk 0:00:25]}  Qh3 {[%clk 0:00:36]} 25. Nd5 {[%clk 0:00:23]}  Qh5 {[%clk 0:00:32]} 26. Qf3 {[%clk 0:00:20]}  Qf5 {[%clk 0:00:30]} 27. Ne3 {[%clk 0:00:19]}  Qe6 {[%clk 0:00:29]} 28. b3 {[%clk 0:00:18]}  Bh6 {[%clk 0:00:26]} 29. Rd6 {[%clk 0:00:15]}  Qe7 {[%clk 0:00:23]} 30. Qh3 {[%clk 0:00:11]}  Bxf4 {[%clk 0:00:19]} 31. Nd5 {[%clk 0:00:11]}  Qxe5 {[%clk 0:00:17]} 32. Nxf4 {[%clk 0:00:11]}  Qxd6 {[%clk 0:00:15]} 33. Nd3 {[%clk 0:00:11]}  Qe7 {[%clk 0:00:13]} 34. Nf4 {[%clk 0:00:08]}  Qg5+ {[%clk 0:00:11]} 35. Qg3 {[%clk 0:00:09]}  Qxg3+ {[%clk 0:00:11]} 36. hxg3 {[%clk 0:00:10]}  Rc8 {[%clk 0:00:12]} 37. Rd1 {[%clk 0:00:10]}  Rc2 {[%clk 0:00:13]} 38. Rd7 {[%clk 0:00:09]}  Rxa2 {[%clk 0:00:12]} 39. Kg2 {[%clk 0:00:10]}  Kg7 {[%clk 0:00:11]} 40. Ne6+ {[%clk 0:00:09]}  Kg8 {[%clk 0:00:11]} 41. Nxf8 {[%clk 0:00:09]}  Kxf8 {[%clk 0:00:12]} 42. Ra7 {[%clk 0:00:10]}  Rxe2 {[%clk 0:00:10]} 43. Rxa6 {[%clk 0:00:09]}  Rb2 {[%clk 0:00:11]} 44. Ra3 {[%clk 0:00:09]}  b4 {[%clk 0:00:12]} 45. Ra8+ {[%clk 0:00:09]}  Kg7 {[%clk 0:00:12]} 46. Rb8 {[%clk 0:00:09]}  Rxb3 {[%clk 0:00:13]} 47. g4 {[%clk 0:00:09]}  g5 {[%clk 0:00:13]} 48. f3 {[%clk 0:00:09]}  Kg6 {[%clk 0:00:12]} 49. Rb6+ {[%clk 0:00:09]}  f6 {[%clk 0:00:13]} 50. Kg3 {[%clk 0:00:09]}  Rb1 {[%clk 0:00:13]} 51. Kf2 {[%clk 0:00:09]}  b3 {[%clk 0:00:14]} 52. Kg2 {[%clk 0:00:09]}  b2 {[%clk 0:00:12]} 53. Kh2 {[%clk 0:00:09]}  h5 {[%clk 0:00:10]} 54. gxh5+ {[%clk 0:00:09]}  Kxh5 {[%clk 0:00:11]} 55. Kg2 {[%clk 0:00:09]}  Kg6 {[%clk 0:00:10]} 56. Rb5 {[%clk 0:00:09]}  Kf7 {[%clk 0:00:10]} 57. Rb6 {[%clk 0:00:09]}  Kg7 {[%clk 0:00:08]} 58. Rb7+ {[%clk 0:00:08]}  Kg6 {[%clk 0:00:08]} 59. Rb6 {[%clk 0:00:08]}  Kf5 {[%clk 0:00:08]} 60. Rb5+ {[%clk 0:00:08]}  Kf4 {[%clk 0:00:09]} 61. Rb4+ {[%clk 0:00:08]}  Ke3 {[%clk 0:00:09]} 62. Rb6 {[%clk 0:00:06]}  f5 {[%clk 0:00:08]} 63. Rb3+ {[%clk 0:00:06]}  Ke2 {[%clk 0:00:07]} 64. Rb5 {[%clk 0:00:05]}  Kd2 {[%clk 0:00:06]} 65. Rb8 {[%clk 0:00:05]}  Ke3 {[%clk 0:00:05]} 66. Re8+ {[%clk 0:00:05]}  Kf4 {[%clk 0:00:06]} 67. Rb8 {[%clk 0:00:05]}  g4 {[%clk 0:00:06]} 68. Rb4+ {[%clk 0:00:05]}  Kg5 {[%clk 0:00:06]} 69. fxg4 {[%clk 0:00:05]}  f4 {[%clk 0:00:07]} 70. Kh2 {[%clk 0:00:04]}  Kxg4 {[%clk 0:00:07]} 71. Kg2 {[%clk 0:00:05]}  Kf5 {[%clk 0:00:05]} 72. Kh2 {[%clk 0:00:03]}  f3 {[%clk 0:00:05]} 73. Rb3 {[%clk 0:00:02]}  Ke4 {[%clk 0:00:04]} 74. Rb8 {[%clk 0:00:02]}  f2 {[%clk 0:00:04]} 0-1


[Site "https://www.chess.com"]

[Event "Titled Tuesday Blitz April 19 Early 2022"]
[White "Niyazgulova, Marina"]
[Black "Cramling Bellon, Anna"]
[WhiteFideId "24142573"]
[BlackFideId "32009232"]
[WhiteElo "2046"]
[BlackElo "1905"]
[Result "0-1"]
[Round "02"]
[TimeControl "180+1"]
[Date "2022.04.19"]
[WhiteClock "0:00:19"]
[BlackClock "0:00:25"]

1. d4 {[%clk 0:03:00]}  Nf6 {[%clk 0:02:59]} 2. c4 {[%clk 0:03:00]}  e6 {[%clk 0:02:59]} 3. Nc3 {[%clk 0:02:59]}  d5 {[%clk 0:02:59]} 4. Nf3 {[%clk 0:02:58]}  c6 {[%clk 0:02:58]} 5. cxd5 {[%clk 0:02:57]}  exd5 {[%clk 0:02:58]} 6. Bg5 {[%clk 0:02:58]}  Be7 {[%clk 0:02:59]} 7. Qc2 {[%clk 0:02:56]}  O-O {[%clk 0:02:57]} 8. e3 {[%clk 0:02:56]}  h6 {[%clk 0:02:51]} 9. Bh4 {[%clk 0:02:56]}  Be6 {[%clk 0:02:46]} 10. Bd3 {[%clk 0:02:55]}  Nbd7 {[%clk 0:02:46]} 11. O-O {[%clk 0:02:55]}  Rc8 {[%clk 0:02:42]} 12. Ne5 {[%clk 0:02:36]}  Nxe5 {[%clk 0:02:38]} 13. dxe5 {[%clk 0:02:36]}  Nd7 {[%clk 0:02:39]} 14. Bxe7 {[%clk 0:02:35]}  Qxe7 {[%clk 0:02:28]} 15. f4 {[%clk 0:02:30]}  c5 {[%clk 0:02:11]} 16. f5 {[%clk 0:02:19]}  c4 {[%clk 0:01:37]} 17. Be2 {[%clk 0:02:09]}  Qg5 {[%clk 0:01:22]} 18. fxe6 {[%clk 0:02:00]}  Qxe3+ {[%clk 0:01:22]} 19. Kh1 {[%clk 0:01:59]}  fxe6 {[%clk 0:01:21]} 20. Nb5 {[%clk 0:01:40]}  Qxe5 {[%clk 0:01:09]} 21. Qd2 {[%clk 0:01:27]}  Nc5 {[%clk 0:00:58]} 22. Nxa7 {[%clk 0:01:09]}  Ne4 {[%clk 0:00:54]} 23. Qe3 {[%clk 0:00:44]}  Nf2+ {[%clk 0:00:44]} 24. Qxf2 {[%clk 0:00:43]}  Rxf2 {[%clk 0:00:42]} 25. Rxf2 {[%clk 0:00:43]}  Qe3 {[%clk 0:00:38]} 26. Nxc8 {[%clk 0:00:38]}  Qxf2 {[%clk 0:00:38]} 27. Bf3 {[%clk 0:00:39]}  Qxb2 {[%clk 0:00:32]} 28. Re1 {[%clk 0:00:36]}  c3 {[%clk 0:00:32]} 29. Bd1 {[%clk 0:00:22]}  Qf2 {[%clk 0:00:25]} 30. Rg1 {[%clk 0:00:21]}  c2 {[%clk 0:00:25]} 31. Bxc2 {[%clk 0:00:21]}  Qxc2 {[%clk 0:00:25]} 32. Ne7+ {[%clk 0:00:19]}  Kf7 {[%clk 0:00:25]} 33. Nxd5 {[%clk 0:00:17]}  exd5 {[%clk 0:00:25]} 34. h3 {[%clk 0:00:18]}  d4 {[%clk 0:00:25]} 35. Kh2 {[%clk 0:00:18]}  d3 {[%clk 0:00:26]} 36. Kg3 {[%clk 0:00:18]}  d2 {[%clk 0:00:26]} 37. Kg4 {[%clk 0:00:19]}  d1=Q+ {[%clk 0:00:26]} 38. Rxd1 {[%clk 0:00:19]}  Qxd1+ {[%clk 0:00:26]} 39. Kg3 {[%clk 0:00:19]}  Qd3+ {[%clk 0:00:25]} 0-1


[Site "https://www.chess.com"]

[Event "Titled Tuesday Blitz April 19 Early 2022"]
[White "Omariev, Maksim"]
[Black "Samsonkin, Artiom"]
[WhiteFideId "4193423"]
[BlackFideId "13503111"]
[WhiteElo "2480"]
[BlackElo "2513"]
[Result "0-1"]
[Round "02"]
[TimeControl "180+1"]
[Date "2022.04.19"]
[WhiteClock "0:01:55"]
[BlackClock "0:02:08"]

1. b3 {[%clk 0:03:00]}  e5 {[%clk 0:02:59]} 2. Bb2 {[%clk 0:03:01]}  Nc6 {[%clk 0:02:59]} 3. e3 {[%clk 0:03:01]}  d6 {[%clk 0:02:59]} 4. c4 {[%clk 0:02:52]}  g6 {[%clk 0:02:59]} 5. d4 {[%clk 0:02:51]}  Bg7 {[%clk 0:03:00]} 6. Nf3 {[%clk 0:02:50]}  Nge7 {[%clk 0:02:49]} 7. dxe5 {[%clk 0:02:45]}  O-O {[%clk 0:02:48]} 8. Be2 {[%clk 0:02:41]}  dxe5 {[%clk 0:02:47]} 9. O-O {[%clk 0:02:39]}  e4 {[%clk 0:02:31]} 10. Nd4 {[%clk 0:02:25]}  Nf5 {[%clk 0:02:09]} 11. Nxc6 {[%clk 0:02:22]}  Qxd1 {[%clk 0:02:09]} 12. Rxd1 {[%clk 0:01:55]}  Bxb2 {[%clk 0:02:08]} 0-1


[Site "https://www.chess.com"]

[Event "Titled Tuesday Blitz April 19 Early 2022"]
[White "Omelja, Artem"]
[Black "Pourkashiyan, Atousa"]
[WhiteFideId "14119846"]
[BlackFideId "12502014"]
[WhiteElo "2382"]
[BlackElo "2247"]
[Result "0-1"]
[Round "02"]
[TimeControl "180+1"]
[Date "2022.04.19"]
[WhiteClock "0:00:14"]
[BlackClock "0:00:22"]

1. d4 {[%clk 0:03:00]}  Nf6 {[%clk 0:02:59]} 2. c4 {[%clk 0:02:57]}  e6 {[%clk 0:03:00]} 3. Nf3 {[%clk 0:02:57]}  d5 {[%clk 0:02:59]} 4. Nc3 {[%clk 0:02:57]}  Be7 {[%clk 0:02:59]} 5. Bg5 {[%clk 0:02:57]}  O-O {[%clk 0:03:00]} 6. e3 {[%clk 0:02:56]}  Nbd7 {[%clk 0:02:59]} 7. cxd5 {[%clk 0:02:56]}  exd5 {[%clk 0:02:59]} 8. Bd3 {[%clk 0:02:56]}  c6 {[%clk 0:03:00]} 9. Qc2 {[%clk 0:02:56]}  Re8 {[%clk 0:03:00]} 10. O-O {[%clk 0:02:55]}  Nf8 {[%clk 0:03:01]} 11. Rab1 {[%clk 0:02:54]}  a5 {[%clk 0:03:00]} 12. a3 {[%clk 0:02:54]}  Ng6 {[%clk 0:02:50]} 13. b4 {[%clk 0:02:49]}  axb4 {[%clk 0:02:51]} 14. axb4 {[%clk 0:02:50]}  Be6 {[%clk 0:02:48]} 15. Na4 {[%clk 0:02:25]}  Nd7 {[%clk 0:02:43]} 16. Bxe7 {[%clk 0:02:20]}  Qxe7 {[%clk 0:02:44]} 17. Nc5 {[%clk 0:02:18]}  b5 {[%clk 0:02:43]} 18. Nxd7 {[%clk 0:02:11]}  Bxd7 {[%clk 0:02:42]} 19. Rfc1 {[%clk 0:02:07]}  Rec8 {[%clk 0:02:39]} 20. Bf5 {[%clk 0:01:58]}  Ra4 {[%clk 0:02:15]} 21. Bxd7 {[%clk 0:01:44]}  Qxd7 {[%clk 0:02:14]} 22. Ne1 {[%clk 0:01:42]}  Qg4 {[%clk 0:02:05]} 23. h3 {[%clk 0:01:38]}  Qg5 {[%clk 0:02:04]} 24. Nf3 {[%clk 0:01:37]}  Qe7 {[%clk 0:02:03]} 25. Qf5 {[%clk 0:01:24]}  Rc7 {[%clk 0:01:55]} 26. Rc5 {[%clk 0:01:23]}  h6 {[%clk 0:01:50]} 27. Ne1 {[%clk 0:01:02]}  Nh4 {[%clk 0:01:46]} 28. Qg4 {[%clk 0:00:47]}  Qg5 {[%clk 0:01:36]} 29. Qxg5 {[%clk 0:00:44]}  hxg5 {[%clk 0:01:37]} 30. Nd3 {[%clk 0:00:45]}  f6 {[%clk 0:01:30]} 31. Rbc1 {[%clk 0:00:43]}  Ra3 {[%clk 0:01:27]} 32. Ne1 {[%clk 0:00:41]}  Ra6 {[%clk 0:01:26]} 33. g3 {[%clk 0:00:36]}  Nf5 {[%clk 0:01:24]} 34. Rxd5 {[%clk 0:00:32]}  cxd5 {[%clk 0:01:23]} 35. Rxc7 {[%clk 0:00:32]}  Ra1 {[%clk 0:01:24]} 36. Kf1 {[%clk 0:00:32]}  Rb1 {[%clk 0:01:24]} 37. Rd7 {[%clk 0:00:32]}  Rxb4 {[%clk 0:01:22]} 38. Rxd5 {[%clk 0:00:31]}  Ne7 {[%clk 0:01:18]} 39. Rd7 {[%clk 0:00:31]}  Kf7 {[%clk 0:01:17]} 40. Nd3 {[%clk 0:00:32]}  Rb1+ {[%clk 0:01:17]} 41. Kg2 {[%clk 0:00:31]}  b4 {[%clk 0:01:14]} 42. Nc5 {[%clk 0:00:31]}  Ke8 {[%clk 0:01:03]} 43. Rb7 {[%clk 0:00:30]}  Nd5 {[%clk 0:00:58]} 44. Ne6 {[%clk 0:00:24]}  b3 {[%clk 0:00:55]} 45. Nxg7+ {[%clk 0:00:24]}  Kd8 {[%clk 0:00:55]} 46. Ne6+ {[%clk 0:00:22]}  Kc8 {[%clk 0:00:55]} 47. Rb5 {[%clk 0:00:22]}  b2 {[%clk 0:00:54]} 48. Nc5 {[%clk 0:00:18]}  Nc3 {[%clk 0:00:53]} 49. Rb3 {[%clk 0:00:18]}  Nd1 {[%clk 0:00:47]} 50. Nd3 {[%clk 0:00:17]}  Ra1 {[%clk 0:00:33]} 51. Rxb2 {[%clk 0:00:10]}  Nxb2 {[%clk 0:00:32]} 52. Nxb2 {[%clk 0:00:11]}  Kd7 {[%clk 0:00:32]} 53. Nd3 {[%clk 0:00:11]}  Ke6 {[%clk 0:00:31]} 54. Kf3 {[%clk 0:00:11]}  Kf5 {[%clk 0:00:30]} 55. g4+ {[%clk 0:00:10]}  Ke6 {[%clk 0:00:30]} 56. Nc5+ {[%clk 0:00:10]}  Kd5 {[%clk 0:00:30]} 57. Ne4 {[%clk 0:00:11]}  Ra6 {[%clk 0:00:28]} 58. Ng3 {[%clk 0:00:11]}  Ra1 {[%clk 0:00:26]} 59. Nf5 {[%clk 0:00:10]}  Rh1 {[%clk 0:00:26]} 60. e4+ {[%clk 0:00:09]}  Ke6 {[%clk 0:00:25]} 61. Kg2 {[%clk 0:00:10]}  Re1 {[%clk 0:00:25]} 62. f3 {[%clk 0:00:10]}  Rd1 {[%clk 0:00:25]} 63. Kf2 {[%clk 0:00:09]}  Rh1 {[%clk 0:00:25]} 64. d5+ {[%clk 0:00:09]}  Kf7 {[%clk 0:00:24]} 65. Kg2 {[%clk 0:00:09]}  Rd1 {[%clk 0:00:25]} 66. h4 {[%clk 0:00:09]}  gxh4 {[%clk 0:00:25]} 67. Nxh4 {[%clk 0:00:10]}  Rd2+ {[%clk 0:00:24]} 68. Kg3 {[%clk 0:00:10]}  Rd1 {[%clk 0:00:25]} 69. Nf5 {[%clk 0:00:11]}  Rd2 {[%clk 0:00:25]} 70. Kf4 {[%clk 0:00:12]}  Rd3 {[%clk 0:00:24]} 71. Ng3 {[%clk 0:00:11]}  Ra3 {[%clk 0:00:22]} 72. Ne2 {[%clk 0:00:11]}  Rd3 {[%clk 0:00:22]} 73. Kg3 {[%clk 0:00:11]}  Ke7 {[%clk 0:00:22]} 74. Nf4 {[%clk 0:00:11]}  Rd1 {[%clk 0:00:22]} 75. Nh5 {[%clk 0:00:11]}  Kf7 {[%clk 0:00:22]} 76. Kf4 {[%clk 0:00:10]}  Rd3 {[%clk 0:00:22]} 77. Kg3 {[%clk 0:00:07]}  Rd1 {[%clk 0:00:22]} 78. f4 {[%clk 0:00:08]}  Rd3+ {[%clk 0:00:22]} 79. Kh4 {[%clk 0:00:08]}  Rd4 {[%clk 0:00:20]} 80. Ng3 {[%clk 0:00:07]}  Kg6 {[%clk 0:00:21]} 81. f5+ {[%clk 0:00:07]}  Kh6 {[%clk 0:00:20]} 82. Kh3 {[%clk 0:00:06]}  Kg5 {[%clk 0:00:21]} 83. Nh5 {[%clk 0:00:02]}  Rxe4 {[%clk 0:00:20]} 84. Ng3 {[%clk 0:00:02]}  Rd4 {[%clk 0:00:19]} 85. Kg2 {[%clk 0:00:02]}  Kxg4 {[%clk 0:00:18]} 86. Ne2 {[%clk 0:00:02]}  Rxd5 {[%clk 0:00:18]} 87. Kf2 {[%clk 0:00:03]}  Kxf5 {[%clk 0:00:18]} 88. Ke3 {[%clk 0:00:04]}  Re5+ {[%clk 0:00:18]} 89. Kf3 {[%clk 0:00:04]}  Rxe2 {[%clk 0:00:18]} 90. Kxe2 {[%clk 0:00:05]}  Kg4 {[%clk 0:00:18]} 91. Kf2 {[%clk 0:00:06]}  Kf4 {[%clk 0:00:18]} 92. Ke2 {[%clk 0:00:06]}  Kg3 {[%clk 0:00:18]} 93. Ke3 {[%clk 0:00:07]}  f5 {[%clk 0:00:19]} 94. Ke2 {[%clk 0:00:08]}  f4 {[%clk 0:00:18]} 95. Kf1 {[%clk 0:00:08]}  Kf3 {[%clk 0:00:19]} 96. Kg1 {[%clk 0:00:09]}  Ke2 {[%clk 0:00:19]} 97. Kg2 {[%clk 0:00:10]}  f3+ {[%clk 0:00:20]} 98. Kh3 {[%clk 0:00:11]}  f2 {[%clk 0:00:20]} 99. Kh4 {[%clk 0:00:11]}  f1=Q {[%clk 0:00:21]} 100. Kh5 {[%clk 0:00:12]}  Qg1 {[%clk 0:00:21]} 101. Kh6 {[%clk 0:00:13]}  Kf3 {[%clk 0:00:22]} 102. Kh7 {[%clk 0:00:14]}  Kf4 {[%clk 0:00:22]} 0-1


[Site "https://www.chess.com"]

[Event "Titled Tuesday Blitz April 19 Early 2022"]
[White "Oparin, Grigoriy"]
[Black "Maksimenko, Viktor"]
[WhiteFideId "24125890"]
[BlackFideId "13710478"]
[WhiteElo "2665"]
[BlackElo "2269"]
[Result "1-0"]
[Round "02"]
[TimeControl "180+1"]
[Date "2022.04.19"]
[WhiteClock "0:02:25"]
[BlackClock "0:01:17"]

1. e4 {[%clk 0:03:00]}  c6 {[%clk 0:02:59]} 2. Nc3 {[%clk 0:03:00]}  d5 {[%clk 0:03:00]} 3. d4 {[%clk 0:02:59]}  dxe4 {[%clk 0:03:00]} 4. Nxe4 {[%clk 0:03:00]}  Nf6 {[%clk 0:03:01]} 5. Nxf6+ {[%clk 0:03:00]}  exf6 {[%clk 0:03:01]} 6. c3 {[%clk 0:03:00]}  Bd6 {[%clk 0:03:02]} 7. Bd3 {[%clk 0:03:00]}  O-O {[%clk 0:03:02]} 8. Qc2 {[%clk 0:03:01]}  Re8+ {[%clk 0:03:02]} 9. Ne2 {[%clk 0:03:01]}  h5 {[%clk 0:03:03]} 10. O-O {[%clk 0:02:59]}  h4 {[%clk 0:03:01]} 11. h3 {[%clk 0:02:58]}  Nd7 {[%clk 0:03:01]} 12. Be3 {[%clk 0:02:58]}  Nf8 {[%clk 0:03:01]} 13. Rae1 {[%clk 0:02:59]}  Bd7 {[%clk 0:02:53]} 14. Kh1 {[%clk 0:02:58]}  Rc8 {[%clk 0:02:44]} 15. Ng1 {[%clk 0:02:58]}  Bb8 {[%clk 0:02:32]} 16. f4 {[%clk 0:02:53]}  g6 {[%clk 0:02:28]} 17. Qf2 {[%clk 0:02:51]}  Be6 {[%clk 0:02:01]} 18. b3 {[%clk 0:02:44]}  c5 {[%clk 0:01:52]} 19. Nf3 {[%clk 0:02:43]}  cxd4 {[%clk 0:01:47]} 20. Bxd4 {[%clk 0:02:41]}  Bxf4 {[%clk 0:01:45]} 21. Qxh4 {[%clk 0:02:36]}  g5 {[%clk 0:01:40]} 22. Qh6 {[%clk 0:02:29]}  Nd7 {[%clk 0:01:17]} 23. Bh7+ {[%clk 0:02:25]}  Kh8 {[%clk 0:01:17]} 24. Rxe6 {[%clk 0:02:25]} 1-0


[Site "https://www.chess.com"]

[Event "Titled Tuesday Blitz April 19 Early 2022"]
[White "Pajeken, Jakob Leon"]
[Black "Xu, Yi"]
[WhiteFideId "12942839"]
[BlackFideId "8605564"]
[WhiteElo "2351"]
[BlackElo "2471"]
[Result "0-1"]
[Round "02"]
[TimeControl "180+1"]
[Date "2022.04.19"]
[WhiteClock "0:00:11"]
[BlackClock "0:00:03"]

1. d4 {[%clk 0:03:00]}  Nf6 {[%clk 0:02:59]} 2. Nf3 {[%clk 0:03:00]}  d5 {[%clk 0:02:59]} 3. e3 {[%clk 0:02:57]}  e6 {[%clk 0:02:59]} 4. c4 {[%clk 0:02:56]}  b6 {[%clk 0:02:58]} 5. Nc3 {[%clk 0:02:56]}  a6 {[%clk 0:02:58]} 6. Bd3 {[%clk 0:02:52]}  Bb7 {[%clk 0:02:57]} 7. O-O {[%clk 0:02:48]}  Bd6 {[%clk 0:02:56]} 8. Qe2 {[%clk 0:02:37]}  Ne4 {[%clk 0:02:53]} 9. Nd2 {[%clk 0:02:30]}  f5 {[%clk 0:02:42]} 10. f3 {[%clk 0:02:21]}  Nxd2 {[%clk 0:02:32]} 11. Bxd2 {[%clk 0:02:20]}  O-O {[%clk 0:02:25]} 12. Na4 {[%clk 0:02:06]}  Nd7 {[%clk 0:02:18]} 13. b4 {[%clk 0:02:01]}  dxc4 {[%clk 0:02:09]} 14. Bxc4 {[%clk 0:01:57]}  Qe7 {[%clk 0:02:02]} 15. b5 {[%clk 0:01:51]}  axb5 {[%clk 0:01:58]} 16. Bxb5 {[%clk 0:01:45]}  c6 {[%clk 0:01:58]} 17. Nc3 {[%clk 0:01:43]}  cxb5 {[%clk 0:01:58]} 18. Nxb5 {[%clk 0:01:44]}  Nf6 {[%clk 0:01:52]} 19. Rab1 {[%clk 0:01:37]}  Rfc8 {[%clk 0:01:48]} 20. Qd3 {[%clk 0:01:30]}  Bd5 {[%clk 0:01:47]} 21. Rfc1 {[%clk 0:01:29]}  Rxc1+ {[%clk 0:01:46]} 22. Rxc1 {[%clk 0:01:30]}  h6 {[%clk 0:01:43]} 23. a3 {[%clk 0:01:27]}  Qd7 {[%clk 0:01:37]} 24. Qb1 {[%clk 0:01:22]}  Rb8 {[%clk 0:01:26]} 25. Be1 {[%clk 0:01:19]}  Bc6 {[%clk 0:01:26]} 26. Nxd6 {[%clk 0:01:18]}  f4 {[%clk 0:01:06]} 27. Nc4 {[%clk 0:01:09]}  Bd5 {[%clk 0:00:57]} 28. Ne5 {[%clk 0:01:09]}  Qa4 {[%clk 0:00:37]} 29. Qg6 {[%clk 0:01:01]}  Qxa3 {[%clk 0:00:31]} 30. Qf7+ {[%clk 0:00:42]}  Kh8 {[%clk 0:00:29]} 31. Rc7 {[%clk 0:00:37]}  Ne8 {[%clk 0:00:23]} 32. Ng6+ {[%clk 0:00:35]}  Kh7 {[%clk 0:00:23]} 33. Rc3 {[%clk 0:00:20]}  Qa1 {[%clk 0:00:19]} 34. Nf8+ {[%clk 0:00:20]}  Kh8 {[%clk 0:00:19]} 35. Ng6+ {[%clk 0:00:20]}  Kh7 {[%clk 0:00:20]} 36. Kf1 {[%clk 0:00:19]}  Nd6 {[%clk 0:00:18]} 37. Qxf4 {[%clk 0:00:17]}  Qa6+ {[%clk 0:00:16]} 38. Kf2 {[%clk 0:00:17]}  Qa2+ {[%clk 0:00:13]} 39. Kg3 {[%clk 0:00:17]}  Qb1 {[%clk 0:00:10]} 40. Ne7 {[%clk 0:00:15]}  Qxe1+ {[%clk 0:00:10]} 41. Kh3 {[%clk 0:00:15]}  Qxc3 {[%clk 0:00:10]} 42. Qf7 {[%clk 0:00:15]}  Qd3 {[%clk 0:00:09]} 43. Qf4 {[%clk 0:00:15]}  Nf5 {[%clk 0:00:05]} 44. Qxb8 {[%clk 0:00:14]}  Nxe7 {[%clk 0:00:05]} 45. e4 {[%clk 0:00:14]}  Bxe4 {[%clk 0:00:05]} 46. Qe8 {[%clk 0:00:12]}  Bf5+ {[%clk 0:00:04]} 47. Kg3 {[%clk 0:00:12]}  Ng6 {[%clk 0:00:01]} 48. h4 {[%clk 0:00:12]}  Qxd4 {[%clk 0:00:01]} 49. Qb8 {[%clk 0:00:11]}  Qf4+ {[%clk 0:00:02]} 50. Qxf4 {[%clk 0:00:11]}  Nxf4 {[%clk 0:00:03]} 51. Kxf4 {[%clk 0:00:12]}  b5 {[%clk 0:00:03]} 52. g4 {[%clk 0:00:13]}  b4 {[%clk 0:00:03]} 53. gxf5 {[%clk 0:00:13]}  b3 {[%clk 0:00:03]} 54. fxe6 {[%clk 0:00:12]}  Kg8 {[%clk 0:00:04]} 55. Ke5 {[%clk 0:00:11]}  b2 {[%clk 0:00:04]} 56. Kd6 {[%clk 0:00:11]}  b1=Q {[%clk 0:00:03]} 0-1


[Site "https://www.chess.com"]

[Event "Titled Tuesday Blitz April 19 Early 2022"]
[White "Piesik, Piotr"]
[Black "Mayaud, Raphael"]
[WhiteFideId "1136194"]
[BlackFideId "627151"]
[WhiteElo "2190"]
[BlackElo "2191"]
[Result "0-1"]
[Round "02"]
[TimeControl "180+1"]
[Date "2022.04.19"]
[WhiteClock "0:00:57"]
[BlackClock "0:00:13"]

1. Nf3 {[%clk 0:02:57]}  d5 {[%clk 0:02:59]} 2. g3 {[%clk 0:02:58]}  c6 {[%clk 0:02:59]} 3. Bg2 {[%clk 0:02:58]}  Nf6 {[%clk 0:03:00]} 4. O-O {[%clk 0:02:59]}  Bf5 {[%clk 0:02:55]} 5. d3 {[%clk 0:02:59]}  e6 {[%clk 0:02:55]} 6. Nbd2 {[%clk 0:02:59]}  h6 {[%clk 0:02:55]} 7. Qe1 {[%clk 0:03:00]}  Bh7 {[%clk 0:02:55]} 8. e4 {[%clk 0:03:00]}  dxe4 {[%clk 0:02:55]} 9. dxe4 {[%clk 0:03:01]}  Be7 {[%clk 0:02:54]} 10. Qe2 {[%clk 0:03:01]}  Nbd7 {[%clk 0:02:52]} 11. b3 {[%clk 0:03:01]}  Qc7 {[%clk 0:02:52]} 12. Bb2 {[%clk 0:03:01]}  O-O {[%clk 0:02:50]} 13. a4 {[%clk 0:03:01]}  Rfe8 {[%clk 0:02:50]} 14. Rfd1 {[%clk 0:03:01]}  Rad8 {[%clk 0:02:50]} 15. Ne1 {[%clk 0:03:00]}  e5 {[%clk 0:02:49]} 16. Nc4 {[%clk 0:02:59]}  Bc5 {[%clk 0:02:43]} 17. Nd3 {[%clk 0:02:58]}  Bd4 {[%clk 0:02:43]} 18. c3 {[%clk 0:02:58]}  Bc5 {[%clk 0:02:40]} 19. Nxc5 {[%clk 0:02:50]}  Nxc5 {[%clk 0:02:40]} 20. Rxd8 {[%clk 0:02:51]}  Rxd8 {[%clk 0:02:26]} 21. b4 {[%clk 0:02:43]}  Ncxe4 {[%clk 0:02:16]} 22. Re1 {[%clk 0:02:35]}  b5 {[%clk 0:02:08]} 23. Bxe4 {[%clk 0:02:28]}  Nxe4 {[%clk 0:02:07]} 24. f3 {[%clk 0:02:28]}  Nxg3 {[%clk 0:01:02]} 25. hxg3 {[%clk 0:02:23]}  bxc4 {[%clk 0:01:00]} 26. Qxc4 {[%clk 0:02:18]}  e4 {[%clk 0:00:58]} 27. f4 {[%clk 0:02:17]}  Rd3 {[%clk 0:00:55]} 28. Bc1 {[%clk 0:02:01]}  Rxg3+ {[%clk 0:00:53]} 29. Kh2 {[%clk 0:01:59]}  Rg4 {[%clk 0:00:47]} 30. Qc5 {[%clk 0:01:29]}  Qd8 {[%clk 0:00:31]} 31. Re3 {[%clk 0:01:22]}  Qd1 {[%clk 0:00:24]} 32. Rg3 {[%clk 0:01:04]}  Rxg3 {[%clk 0:00:19]} 33. Kxg3 {[%clk 0:01:05]}  Qxc1 {[%clk 0:00:19]} 34. Qxc6 {[%clk 0:01:01]}  Qe3+ {[%clk 0:00:19]} 35. Kg2 {[%clk 0:01:01]}  Qf3+ {[%clk 0:00:18]} 36. Kg1 {[%clk 0:01:01]}  Bf5 {[%clk 0:00:16]} 37. Qe8+ {[%clk 0:00:57]}  Kh7 {[%clk 0:00:15]} 38. Qxf7 {[%clk 0:00:58]}  Bg6 {[%clk 0:00:13]} 39. Qc7 {[%clk 0:00:57]}  e3 {[%clk 0:00:13]} 0-1


[Site "https://www.chess.com"]